bitfinex/quotes_SOLUSD_20240626
["timestamp","ask_amount","ask_price","bid_price","bid_amount"]
[1719416317764,7.03065531,136.53,136.43,7.3297]
[1719416317765,7.3276,136.47,136.43,7.3297]
[1719416318250,7.3271,136.48,136.42,24.8901]
[1719416318451,7.3271,136.48,136.44,7.3288]
[1719416318648,7.3279,136.47,136.43,7.3295]
[1719416318852,7.3282,136.46,136.42,32.2203]
[1719416319077,7.3282,136.46,136.42,24.8901]
[1719416319246,18.3156,136.5,136.42,32.2203]
[1719416319452,7.3277,136.47,136.42,32.2203]
[1719416320067,7.3277,136.47,136.43,7.3296]
[1719416320353,7.3279,136.47,136.43,7.3296]
[1719416320554,7.3279,136.47,136.42,32.2201]
[1719416321484,7.3279,136.47,136.43,7.3296]
[1719416322076,18.3156,136.5,136.42,24.8901]
[1719416322296,7.3281,136.46,136.42,32.2203]
[1719416322754,0.34,136.51,136.38,6.2305]
[1719416322755,16.0013,136.48,136.38,6.2305]
[1719416322951,18.3216,136.46,136.38,24.5613]
[1719416323177,18.3216,136.46,136.38,18.3308]
[1719416323351,7.3311,136.41,136.36,22.8216]
[1719416323554,18.3216,136.46,136.36,22.8216]
[1719416323555,7.3305,136.42,136.37,7.3325]
[1719416323757,7.3305,136.42,136.38,7.3323]
[1719416324075,7.3299,136.43,136.39,7.3318]
[1719416324374,0.34,136.47,136.36,59.4886]
[1719416324577,7.3295,136.44,136.4,7.3311]
[1719416324803,7.3288,136.45,136.4,25.6595]
[1719416325078,20.0,136.44,136.4,25.6596]
[1719416325260,20.0,136.44,136.41,7.3307]
[1719416325576,20.0,136.44,136.4,25.6596]
[1719416325762,20.0,136.44,136.39,7.3315]
[1719416326076,20.0,136.46,136.39,7.3315]
[1719416326478,20.0,136.46,136.39,18.329]
[1719416326784,20.0,136.47,136.39,18.329]
[1719416326973,7.3306,136.42,136.38,7.3324]
[1719416327175,7.3306,136.42,136.37,7.3326]
[1719416327976,34.62593223,136.47,136.36,6.2305]
[1719416328180,18.3262,136.42,136.33,39.8581]
[1719416328370,7.3328,136.38,136.33,39.8581]
[1719416328571,7.3321,136.39,136.34,7.3342]
[1719416328771,7.3332,136.37,136.33,24.3831]
[1719416329083,7.3326,136.38,136.33,31.7178]
[1719416329395,7.333,136.37,136.33,31.7178]
[1719416329589,7.3326,136.38,136.33,31.7178]
[1719416329760,34.6119,136.4,136.33,31.7178]
[1719416329761,7.3321,136.39,136.35,7.334]
[1719416329967,7.3326,136.38,136.34,7.3345]
[1719416330281,7.3321,136.39,136.34,7.3345]
[1719416330461,16.2835,136.4,136.33,31.718]
[1719416330783,7.3332,136.37,136.33,31.718]
[1719416330984,7.3342,136.35,136.31,7.336]
[1719416331285,7.3341,136.35,136.31,7.3361]
[1719416331486,6.3874,136.36,136.3,0.8441205]
[1719416331682,20.0,136.35,136.3,0.8441205]
[1719416332587,7.3362,136.31,136.3,0.8441205]
[1719416333066,27.3341,136.35,136.3,0.8441205]
[1719416333262,20.0,136.35,136.3,0.8441205]
[1719416333468,7.3355,136.33,136.3,0.8441205]
[1719416333714,6.4598,136.39,136.3,0.8441205]
[1719416333715,7.3339,136.36,136.3,0.8441205]
[1719416333868,7.3339,136.36,136.31,7.3357]
[1719416334065,7.333,136.37,136.32,7.3355]
[1719416334291,16.2835,136.4,136.3,16.7351205]
[1719416334483,20.0,136.39,136.36,7.3334]
[1719416334793,7.3315,136.4,136.33,18.3374]
[1719416334968,7.3309,136.41,136.36,7.3334]
[1719416335164,20.0,136.4,136.34,6.2211]
[1719416335572,7.3314,136.4,136.35,18.3346]
[1719416335879,7.3315,136.4,136.36,7.3334]
[1719416336079,18.3264,136.42,136.34,6.2211]
[1719416336390,7.3298,136.43,136.38,7.3323]
[1719416336594,22.73617692,136.47,136.37,18.3314]
[1719416336771,22.73617692,136.47,136.38,7.332]
[1719416336772,7.3301,136.43,136.38,7.332]
[1719416336971,7.3291,136.45,136.4,7.3313]
[1719416337191,7.3291,136.45,136.36,15.502]
[1719416337192,7.327,136.48,136.41,18.3264]
[1719416337487,7.3282,136.46,136.41,18.3264]
[1719416337671,7.3275,136.48,136.41,18.3264]
[1719416338300,7.3255,136.51,136.44,18.3228]
[1719416338483,7.3255,136.51,136.46,7.328]
[1719416338895,7.3298,136.43,136.37,7.3327]
[1719416339202,7.3298,136.43,136.38,7.3324]
[1719416339413,22.82264866,136.48,136.37,25.6643]
[1719416339576,22.82264866,136.48,136.37,18.3314]
[1719416339775,4.50464866,136.48,136.37,18.3314]
[1719416339971,7.3292,136.45,136.39,7.3318]
[1719416340292,20.0,136.44,136.39,7.3315]
[1719416340800,4.67464866,136.43,136.33,31.9943]
[1719416340997,4.50464866,136.43,136.33,31.9943]
[1719416341176,4.50464866,136.43,136.3,19.1855205]
[1719416341177,7.3339,136.36,136.3,19.1855205]
[1719416341377,7.3339,136.36,136.3,26.5217205]
[1719416341688,4.50464866,136.43,136.3,0.8441205]
[1719416341884,4.50464866,136.43,136.34,18.3354]
[1719416342286,7.3313,136.41,136.34,18.3354]
[1719416342493,7.3313,136.41,136.35,7.3339]
[1719416342689,4.50464866,136.43,136.36,18.3328]
[1719416343004,7.3304,136.42,136.37,7.3326]
[1719416343219,7.3315,136.4,136.34,0.17]
[1719416343506,7.3308,136.41,136.35,7.3338]
[1719416343879,7.3308,136.41,136.36,7.3333]
[1719416344190,7.3303,136.42,136.35,18.3341]
[1719416344486,20.0,136.41,136.36,7.3334]
[1719416344802,26.72694866,136.45,136.35,18.3341]
[1719416344971,20.0,136.44,136.3,0.8441205]
[1719416345177,3.38452616,136.43,136.32,18.339]
[1719416345477,7.3318,136.4,136.34,7.3345]
[1719416345680,7.3329,136.38,136.33,7.3349]
[1719416346011,3.38452616,136.43,136.34,7.3344]
[1719416346184,7.3314,136.4,136.34,7.3344]
[1719416346498,27.332,136.39,136.34,7.3344]
[1719416346796,3.38452616,136.43,136.36,7.3332]
[1719416346978,3.38452616,136.43,136.34,18.3353]
[1719416346979,23.04452616,136.43,136.35,7.3339]
[1719416347181,7.3309,136.41,136.35,7.3339]
[1719416347394,23.04452616,136.43,136.37,7.3329]
[1719416347695,3.04452616,136.43,136.35,7.3335]
[1719416347882,3.04452616,136.43,136.34,18.3353]
[1719416348086,7.3313,136.41,136.35,7.334]
[1719416348286,3.04452616,136.43,136.3,0.8441205]
[1719416348482,7.3331,136.37,136.32,7.3355]
[1719416348877,7.3331,136.37,136.31,25.676]
[1719416349092,7.3323,136.39,136.33,7.335]
[1719416349298,20.0,136.38,136.33,7.3347]
[1719416349504,7.3312,136.41,136.36,7.3334]
[1719416349800,20.0,136.4,136.36,7.3334]
[1719416350785,3.04452616,136.43,136.35,18.5041]
[1719416350983,20.0,136.44,136.36,6.2678]
[1719416351191,7.3287,136.45,136.4,7.3309]
[1719416351502,7.3287,136.45,136.37,0.17]
[1719416351503,260.6,136.47,136.37,0.17]
[1719416352392,263.6435931,136.47,136.37,0.17]
[1719416352914,260.6,136.47,136.37,0.17]
[1719416353806,20.0,136.46,136.37,0.17]
[1719416354800,20.0,136.47,136.37,0.17]
[1719416355587,15.4578,136.48,136.37,0.17]
[1719416355788,15.4578,136.48,136.37,20.0]
[1719416356011,15.4578,136.48,136.36,6.0978]
[1719416356506,15.4578,136.48,136.36,28.1178]
[1719416356891,15.4578,136.48,136.36,6.0978]
[1719416357093,20.0,136.47,136.37,0.34]
[1719416357487,20.0,136.47,136.37,22.36]
[1719416357908,20.0,136.5,136.37,22.36]
[1719416358712,16.5445,136.48,136.32,6.233]
[1719416358913,151.507,136.47,136.32,6.233]
[1719416359112,16.4969,136.45,136.32,6.233]
[1719416359315,20.0,136.44,136.32,6.233]
[1719416360404,20.0,136.44,136.32,28.253]
[1719416360611,16.4969,136.49,136.34,22.02]
[1719416360793,16.4969,136.49,136.36,28.53]
[1719416360995,20.0,136.48,136.37,42.19]
[1719416361206,20.0,136.48,136.38,0.17]
[1719416361398,277.0969,136.53,136.4,22.02]
[1719416361593,277.0969,136.53,136.41,0.34]
[1719416362125,277.0969,136.53,136.41,42.36]
[1719416362286,260.6,136.53,136.42,28.53]
[1719416362484,260.6,136.53,136.43,0.34]
[1719416362689,20.0,136.52,136.43,0.34]
[1719416363106,260.6,136.53,136.43,0.34]
[1719416364105,260.6,136.53,136.44,22.02]
[1719416364305,16.4969,136.57,136.45,20.34]
[1719416364499,20.0,136.56,136.45,20.34]
[1719416365209,20.0,136.56,136.45,0.34]
[1719416366421,20.0,136.56,136.46,0.17]
[1719416366614,20.0,136.56,136.44,0.34]
[1719416367492,20.0,136.56,136.43,0.34]
[1719416367918,20.0,136.56,136.43,20.34]
[1719416368527,20.0,136.56,136.43,42.36]
[1719416369231,10.0,136.56,136.43,42.36]
[1719416369522,10.0,136.56,136.43,20.34]
[1719416369855,10.0,136.56,136.43,0.34]
[1719416370319,0.17,136.55,136.42,6.51]
[1719416370838,10.0,136.56,136.42,6.51]
[1719416371130,0.17,136.55,136.42,6.51]
[1719416371303,0.34,136.55,136.42,6.51]
[1719416372610,0.34,136.55,136.43,0.17]
[1719416373325,45.34,136.55,136.43,0.34]
[1719416373510,20.0,136.54,136.43,0.34]
[1719416373711,0.17,136.53,136.43,0.34]
[1719416373926,0.34,136.53,136.43,0.34]
[1719416374303,20.0,136.56,136.43,0.34]
[1719416374630,0.34,136.55,136.43,0.34]
[1719416378407,18.31,136.54,136.46,7.3279]
[1719416378607,7.3252,136.52,136.47,7.3272]
[1719416378808,20.0,136.51,136.47,7.3272]
[1719416379129,27.3255,136.51,136.46,7.3279]
[1719416379519,7.326,136.5,136.46,7.3279]
[1719416379719,20.0,136.49,136.46,7.3279]
[1719416380423,7.3249,136.52,136.48,7.3268]
[1719416380723,34.8032,136.57,136.5,7.326]
[1719416380724,20.0,136.51,136.5,7.326]
[1719416380914,7.3239,136.54,136.5,7.326]
[1719416381119,20.0,136.53,136.51,7.3254]
[1719416381335,20.0,136.54,136.51,7.3254]
[1719416381523,20.98056636,136.62,136.49,6.3773]
[1719416381717,20.0,136.6,136.54,18.3096]
[1719416381923,20.0,136.61,136.55,7.3228]
[1719416382435,20.0,136.62,136.54,25.6332]
[1719416382635,18.3005,136.61,136.53,7.3243]
[1719416382929,20.0,136.6,136.5,36.9678]
[1719416383144,20.0,136.6,136.56,7.3224]
[1719416383313,20.0,136.6,136.56,7.3226]
[1719416383732,27.3207,136.6,136.56,7.3226]
[1719416384630,20.0,136.6,136.55,18.308]
[1719416384929,7.3218,136.58,136.53,7.3243]
[1719416385137,20.0,136.57,136.54,25.6333]
[1719416385317,7.3218,136.58,136.54,25.6333]
[1719416385517,20.0,136.57,136.55,7.3232]
[1719416385724,7.3213,136.59,136.55,7.3232]
[1719416385908,20.0,136.58,136.55,7.3232]
[1719416386106,20.0,136.58,136.54,25.6331]
[1719416386331,7.3223,136.57,136.54,18.3095]
[1719416387537,27.3218,136.58,136.54,25.6333]
[1719416387742,20.0,136.58,136.54,25.6333]
[1719416388041,27.3217,136.58,136.54,25.6333]
[1719416388821,27.3217,136.58,136.54,18.3095]
[1719416389017,20.0,136.58,136.55,7.3232]
[1719416389223,20.0,136.58,136.54,18.3095]
[1719416389517,27.3213,136.59,136.54,18.3095]
[1719416390144,7.3218,136.58,136.54,18.3095]
[1719416390316,27.3213,136.59,136.54,25.6328]
[1719416390517,27.3213,136.59,136.55,7.3232]
[1719416390730,27.3215,136.59,136.55,7.3232]
[1719416392238,27.3215,136.59,136.54,25.6332]
[1719416392239,7.3217,136.58,136.54,25.6332]
[1719416394335,20.0,136.59,136.49,6.3773]
[1719416394336,20.0,136.57,136.51,25.6378]
[1719416394541,20.17,136.59,136.49,6.3773]
[1719416394854,7.3229,136.56,136.52,7.3246]
[1719416395337,20.0,136.55,136.53,7.3243]
[1719416395915,20.0,136.56,136.53,7.3243]
[1719416396123,20.0,136.56,136.54,7.3238]
[1719416396447,27.3223,136.57,136.53,25.635]
[1719416396636,7.3229,136.56,136.51,25.6388]
[1719416396839,27.3234,136.55,136.51,18.3136]
[1719416397161,20.0,136.55,136.52,7.3249]
[1719416397454,27.3234,136.55,136.51,25.6389]
[1719416397826,20.0,136.55,136.52,7.3247]
[1719416398022,20.0,136.55,136.53,7.3243]
[1719416398327,20.0,136.56,136.53,7.3243]
[1719416398522,27.3228,136.56,136.52,25.6357]
[1719416398747,20.0,136.56,136.52,25.6357]
[1719416399342,27.3228,136.56,136.52,25.6357]
[1719416399742,20.0,136.56,136.52,25.6357]
[1719416399947,27.3228,136.56,136.52,25.6357]
[1719416400549,20.0,136.56,136.53,7.3242]
[1719416401331,27.3228,136.56,136.52,25.6357]
[1719416403149,27.3228,136.56,136.49,6.3773]
[1719416403150,7.3238,136.54,136.5,7.3257]
[1719416403455,7.3256,136.51,136.47,22.5051]
[1719416403661,20.0,136.53,136.46,18.3195]
[1719416404036,7.3261,136.5,136.46,25.6475]
[1719416404331,20.0,136.53,136.45,6.2255]
[1719416404332,18.3128,136.52,136.45,6.2255]
[1719416404534,20.0,136.51,136.45,6.2255]
[1719416404752,20.0,136.51,136.47,7.3272]
[1719416404753,27.3256,136.51,136.47,7.3272]
[1719416404933,20.0,136.51,136.49,18.3159]
[1719416405131,7.3251,136.52,136.48,7.3267]
[1719416405330,20.0,136.51,136.48,7.3267]
[1719416405940,20.0,136.51,136.47,7.3273]
[1719416406349,20.0,136.51,136.48,25.6446]
[1719416406550,20.0,136.51,136.48,18.3176]
[1719416406737,13.70670242,136.58,136.52,7.3248]
[1719416406944,7.323,136.56,136.52,7.3248]
[1719416407140,20.0,136.55,136.52,7.3248]
[1719416407947,20.0,136.55,136.53,7.3243]
[1719416408161,20.0,136.56,136.53,7.3243]
[1719416408372,20.0,136.56,136.54,7.3238]
[1719416408547,16.2844,136.59,136.53,7.3242]
[1719416408548,27.3223,136.57,136.53,7.3242]
[1719416409377,7.3228,136.56,136.52,25.637]
[1719416409551,20.0,136.55,136.52,25.637]
[1719416410645,20.0,136.55,136.53,7.3243]
[1719416410943,20.0,136.56,136.53,7.3243]
[1719416411187,27.323,136.56,136.52,25.6371]
[1719416411553,7.3214,136.59,136.55,7.3228]
[1719416411759,7.321,136.6,136.54,18.3096]
[1719416412076,7.3208,136.6,136.56,7.3227]
[1719416412272,7.3208,136.6,136.54,18.3096]
[1719416412273,7.3212,136.59,136.55,7.3229]
[1719416412866,7.3217,136.58,136.54,25.6332]
[1719416413082,7.3223,136.57,136.53,7.324]
[1719416413386,20.0,136.56,136.53,7.3242]
[1719416413588,20.0,136.56,136.52,18.3121]
[1719416413950,7.3227,136.57,136.53,7.3241]
[1719416414158,7.3219,136.58,136.54,7.3237]
[1719416414383,20.0,136.57,136.54,7.3237]
[1719416415679,20.0,136.57,136.55,7.3232]
[1719416415875,20.0,136.58,136.56,7.3226]
[1719416416067,7.3208,136.6,136.56,7.3226]
[1719416416387,15.5725,136.62,136.55,18.3078]
[1719416416388,7.3198,136.62,136.58,7.3215]
[1719416416593,5.74924265,136.63,136.57,25.6275]
[1719416416594,27.3202,136.61,136.57,25.6275]
[1719416416889,5.74924265,136.63,136.51,36.6261]
[1719416417068,7.3209,136.6,136.56,7.3224]
[1719416417458,7.3209,136.6,136.55,18.307]
[1719416417658,7.3209,136.6,136.56,7.3225]
[1719416417885,18.2963,136.64,136.57,18.3048]
[1719416418088,7.3201,136.61,136.57,25.6268]
[1719416418262,20.0,136.6,136.57,25.6268]
[1719416418457,20.0,136.6,136.58,7.3214]
[1719416418667,7.3195,136.63,136.59,7.3211]
[1719416418668,7.3194,136.63,136.59,7.3211]
[1719416418872,20.0,136.62,136.59,7.3211]
[1719416419067,15.6144,136.65,136.59,18.3027]
[1719416419299,20.0,136.64,136.61,7.3197]
[1719416420187,20.0,136.64,136.61,7.3199]
[1719416421088,20.0,136.64,136.6,7.3204]
[1719416421402,27.3187,136.64,136.6,7.3204]
[1719416422435,7.319,136.63,136.59,25.6237]
[1719416424360,27.3197,136.62,136.58,7.3217]
[1719416424958,27.3197,136.62,136.59,7.3211]
[1719416424959,20.0,136.62,136.59,7.3211]
[1719416425166,27.3195,136.62,136.58,25.6256]
[1719416425579,20.0,136.62,136.59,7.3211]
[1719416425888,27.3195,136.62,136.58,25.6256]
[1719416426176,7.3195,136.62,136.58,25.6256]
[1719416426876,20.0,136.61,136.51,36.6261]
[1719416427075,20.0,136.61,136.52,18.3114]
[1719416427268,7.3226,136.57,136.53,7.324]
[1719416427469,7.3215,136.59,136.54,7.3234]
[1719416427662,7.3215,136.59,136.46,29.6161389]
[1719416427663,16.0248,136.57,136.46,23.5701389]
[1719416427865,36.6168,136.55,136.46,7.5961389]
[1719416428068,20.0,136.54,136.46,18.3202]
[1719416428378,7.326,136.5,136.45,7.3286]
[1719416429181,7.326,136.5,136.44,13.7029]
[1719416429497,20.0,136.54,136.44,6.3739]
[1719416429664,7.3269,136.49,136.43,25.6528]
[1719416430164,7.327,136.48,136.43,18.3236]
[1719416430476,23.0462,136.49,136.43,25.6533]
[1719416430686,20.0,136.48,136.43,18.3236]
[1719416431067,20.0,136.48,136.43,25.6533]
[1719416431296,27.3271,136.48,136.43,25.6533]
[1719416431793,20.0,136.48,136.43,25.6533]
[1719416432360,20.0,136.48,136.38,6.2498]
[1719416432577,7.3285,136.46,136.41,18.3259]
[1719416432786,20.0,136.45,136.41,18.3259]
[1719416432974,27.3291,136.45,136.39,7.3318]
[1719416433188,20.0,136.45,136.39,7.3318]
[1719416433491,7.3282,136.46,136.4,18.3278]
[1719416433777,20.17,136.48,136.41,7.3304]
[1719416433988,20.17,136.48,136.38,6.2498]
[1719416433989,7.3296,136.44,136.38,13.5821]
[1719416434196,20.0,136.45,136.38,13.5821]
[1719416434197,20.0,136.48,136.39,18.3287]
[1719416434869,20.0,136.48,136.41,7.3306]
[1719416434870,7.3285,136.46,136.41,7.3306]
[1719416435068,7.3287,136.45,136.4,7.3312]
[1719416435269,20.0,136.44,136.4,7.3312]
[1719416435477,20.0,136.44,136.41,7.3307]
[1719416435684,20.0,136.44,136.42,7.3302]
[1719416435867,20.0,136.46,136.42,7.3302]
[1719416436278,20.0,136.46,136.39,18.3287]
[1719416436279,27.3281,136.46,136.39,18.3287]
[1719416436478,7.3287,136.45,136.4,7.3312]
[1719416436885,20.0,136.44,136.4,7.3312]
[1719416437181,20.0,136.44,136.38,6.5898]
[1719416437182,20.0,136.44,136.38,6.2498]
[1719416437489,7.3306,136.42,136.38,13.5822]
[1719416437860,16.0911,136.43,136.38,18.33]
[1719416438074,16.0911,136.43,136.3,6.7745748]
[1719416438075,20.0,136.42,136.3,0.8441205]
[1719416438279,7.3312,136.41,136.3,0.8441205]
[1719416438582,7.3322,136.39,136.3,0.8441205]
[1719416438967,20.0,136.38,136.34,7.3345]
[1719416439169,27.3325,136.38,136.33,7.335]
[1719416439884,7.3332,136.37,136.32,18.3384]
[1719416440080,19.5191,136.43,136.34,18.3359]
[1719416440269,7.3309,136.41,136.35,7.3335]
[1719416440584,7.3298,136.43,136.36,18.3331]
[1719416440891,20.0,136.42,136.38,7.3324]
[1719416441277,20.0,136.42,136.37,7.3328]
[1719416442002,7.3308,136.41,136.36,25.6665]
[1719416442971,7.3321,136.39,136.33,18.3372]
[1719416443184,7.3309,136.41,136.36,7.3334]
[1719416443388,20.0,136.4,136.36,7.3334]
[1719416443777,20.0,136.4,136.37,7.3329]
[1719416443976,20.0,136.41,136.37,7.3329]
[1719416444291,6.4917,136.47,136.34,43.262]
[1719416444496,7.3287,136.45,136.4,7.3309]
[1719416444673,15.3079,136.48,136.41,18.3267]
[1719416444866,20.0,136.47,136.41,18.3267]
[1719416445189,7.3289,136.45,136.4,7.3308]
[1719416445492,20.0,136.47,136.39,7.3319]
[1719416445493,7.3298,136.43,136.39,7.3319]
[1719416445674,7.3294,136.44,136.39,7.3319]
[1719416445881,7.3294,136.44,136.38,18.3301]
[1719416446085,38.3196,136.47,136.35,18.504]
[1719416446270,7.3301,136.43,136.36,0.17]
[1719416446474,38.3196,136.47,136.39,18.3293]
[1719416446475,7.3288,136.45,136.39,18.3293]
[1719416446680,20.0,136.47,136.41,18.3264]
[1719416446871,20.0,136.47,136.42,7.3302]
[1719416447097,7.328,136.47,136.41,18.3264]
[1719416447411,7.3281,136.46,136.41,18.3264]
[1719416447784,7.3288,136.45,136.41,18.3264]
[1719416447990,7.3293,136.44,136.38,18.5004]
[1719416448306,7.3293,136.44,136.39,7.5015]
[1719416448510,7.3299,136.43,136.38,25.6626]
[1719416449772,18.3206,136.46,136.35,18.3342]
[1719416449993,27.3304,136.42,136.37,7.3326]
[1719416450171,20.0,136.42,136.38,7.3324]
[1719416450494,20.0,136.42,136.39,7.3317]
[1719416450672,27.3297,136.43,136.38,7.3323]
[1719416451292,7.3303,136.42,136.37,25.6651]
[1719416453098,27.3299,136.43,136.38,7.3323]
[1719416453611,20.0,136.43,136.39,7.3318]
[1719416453808,20.0,136.43,136.37,18.3323]
[1719416453975,20.0,136.44,136.38,7.3323]
[1719416454701,7.3304,136.42,136.37,25.665]
[1719416454915,7.3304,136.42,136.38,7.3323]
[1719416455193,7.3304,136.42,136.37,25.6651]
[1719416455373,7.3298,136.43,136.38,7.3323]
[1719416455579,20.0,136.42,136.34,24.7555]
[1719416455773,0.17,136.43,136.34,18.3356]
[1719416455974,7.332,136.39,136.34,25.6698]
[1719416456207,7.3325,136.38,136.34,7.3345]
[1719416456411,7.3322,136.39,136.34,7.3345]
[1719416456634,20.0,136.38,136.34,7.3345]
[1719416456807,20.0,136.38,136.35,18.3349]
[1719416457007,20.0,136.38,136.36,7.3335]
[1719416457186,20.0,136.39,136.35,25.6687]
[1719416457593,20.0,136.39,136.36,7.3334]
[1719416458006,27.3319,136.39,136.35,18.3349]
[1719416458187,7.3327,136.38,136.33,7.335]
[1719416458387,7.3327,136.38,136.34,7.3344]
[1719416458591,7.3327,136.38,136.33,7.3349]
[1719416458819,38.331,136.39,136.3,0.8441205]
[1719416459020,7.334,136.35,136.31,7.3361]
[1719416459225,38.331,136.39,136.31,25.6765]
[1719416459405,7.3336,136.36,136.32,7.3355]
[1719416459966,7.3341,136.35,136.31,18.3404]
[1719416460115,7.3336,136.36,136.31,25.6762]
[1719416460319,7.3336,136.36,136.31,25.6763]
[1719416461314,6.0585,136.38,136.3,8.1807205]
[1719416461514,7.3342,136.35,136.3,8.1807205]
[1719416461820,7.3337,136.36,136.31,7.3361]
[1719416462199,6.0585,136.38,136.31,7.3361]
[1719416462395,7.3342,136.35,136.31,7.3361]
[1719416463008,20.0,136.37,136.32,7.3355]
[1719416463210,7.3333,136.37,136.32,7.3355]
[1719416463415,20.0,136.36,136.32,7.3355]
[1719416466313,20.0,136.36,136.34,7.3344]
[1719416466545,7.3325,136.38,136.34,7.3342]
[1719416466709,27.3329,136.37,136.33,25.6725]
[1719416466908,7.3329,136.37,136.33,25.6725]
[1719416467109,7.3329,136.37,136.33,18.3376]
[1719416467514,7.3336,136.36,136.32,7.3354]
[1719416467715,7.3326,136.38,136.33,7.335]
[1719416467922,20.0,136.37,136.33,7.335]
[1719416468337,27.3334,136.37,136.32,7.3355]
[1719416468741,27.3334,136.37,136.33,7.335]
[1719416469148,27.3332,136.37,136.32,7.3354]
[1719416469456,20.0,136.37,136.33,7.335]
[1719416469608,27.3333,136.37,136.32,7.3355]
[1719416469812,27.3333,136.37,136.31,18.3404]
[1719416469813,20.0,136.37,136.33,7.335]
[1719416470845,27.333,136.37,136.32,7.3354]
[1719416471548,27.333,136.37,136.33,7.3351]
[1719416471956,7.3341,136.35,136.31,18.3404]
[1719416472160,7.3341,136.35,136.3,0.8441205]
[1719416472161,20.0,136.37,136.3,8.1805205]
[1719416472464,7.3357,136.32,136.3,0.8441205]
[1719416472761,18.3338,136.36,136.3,0.8441205]
[1719416472922,7.3358,136.32,136.3,0.8441205]
[1719416473249,16.1173,136.34,136.3,0.8441205]
[1719416473250,27.3362,136.31,136.3,0.8441205]
[1719416473417,20.0,136.31,136.3,0.8441205]
[1719416473841,27.3362,136.31,136.3,0.8441205]
[1719416475251,27.3362,136.31,136.22,18.3513]
[1719416475252,20.0,136.31,136.24,7.3399]
[1719416475462,7.3376,136.29,136.24,7.3399]
[1719416475829,7.3368,136.3,136.24,18.3499]
[1719416476038,20.0,136.31,136.26,18.3471]
[1719416476326,27.3362,136.31,136.27,7.3383]
[1719416476640,20.0,136.31,136.27,7.3383]
[1719416476959,23.452,136.34,136.29,7.3369]
[1719416477135,7.3361,136.32,136.28,18.3443]
[1719416477318,20.0,136.33,136.25,18.3475]
[1719416477518,7.3367,136.31,136.25,18.3475]
[1719416477722,7.3367,136.31,136.26,7.3385]
[1719416477953,7.3359,136.32,136.27,7.3382]
[1719416478155,20.0,136.31,136.28,7.3376]
[1719416478868,20.0,136.32,136.28,7.3376]
[1719416479455,7.3353,136.33,136.28,7.3376]
[1719416479654,7.3346,136.34,136.29,7.3372]
[1719416479842,20.0,136.33,136.29,7.3372]
[1719416480669,275.6904,136.38,136.3,0.17]
[1719416480841,7.3347,136.34,136.29,25.6798]
[1719416481272,7.3351,136.33,136.29,25.6798]
[1719416481764,7.3348,136.34,136.29,25.6798]
[1719416481976,7.3352,136.33,136.29,25.6798]
[1719416482182,7.3366,136.31,136.26,25.685]
[1719416482675,7.3366,136.31,136.27,7.3382]
[1719416483941,7.3358,136.32,136.27,7.3382]
[1719416484756,7.3358,136.32,136.28,7.3377]